fUSD/lending_fUSD_20250620
["ID","MTS","AMOUNT","RATE_DAILY","PERIOD"]
[366684683,1750410665312,-577.97,0.0002591,4]
[366684684,1750410665322,-4321.8,0.0002591,4]
[366684685,1750410665331,-490.0,0.0002591,4]
[366684686,1750410665342,-9137.48,0.0002591,4]
[366684687,1750410665352,-1556.01,0.0002591,4]
[366684688,1750410665362,-490.0,0.0002591,4]
[366684689,1750410665373,-490.0,0.0002591,4]
[366684690,1750410665393,-5208.08,0.0002591,4]
[366684691,1750410665402,-799.44,0.0002591,4]
[366684692,1750410665413,-404.59638819,0.0002591,4]
[366684693,1750410665423,-1954.9,0.0002591,4]
[366684694,1750410665433,-490.0,0.0002591,4]
[366684695,1750410665443,-1252.57,0.0002591,4]
[366684696,1750410665453,-490.0,0.0002591,4]
[366684697,1750410665463,-515.66,0.0002591,4]
[366684698,1750410665473,-621.21,0.0002591,4]
[366684699,1750410665482,-493.18,0.0002591,4]
[366684700,1750410665492,-1373.81,0.0002591,4]
[366684701,1750410665502,-490.0,0.0002591,4]
[366684702,1750410665512,-490.0,0.0002591,4]
[366684703,1750410665522,-1449.82,0.0002591,4]
[366684704,1750410665531,-490.0,0.0002591,4]
[366684705,1750410665541,-490.0,0.0002591,4]
[366684706,1750410665550,-490.0,0.0002591,4]
[366684707,1750410665560,-508.07,0.0002591,4]
[366684708,1750410665570,-490.0,0.0002591,4]
[366684709,1750410665579,-1050.79,0.0002591,4]
[366684710,1750410665590,-515.0,0.0002591,4]
[366684711,1750410665599,-490.0,0.0002591,4]
[366684712,1750410665609,-1926.54,0.0002591,4]
[366684713,1750410665618,-585.64,0.0002591,4]
[366684714,1750410665627,-1703.91,0.0002591,4]
[366684715,1750410665637,-490.0,0.0002591,4]
[366684716,1750410665647,-509.79,0.0002591,4]
[366684717,1750410665656,-569.54150079,0.0002591,4]
[366684718,1750410665666,-589.63,0.0002591,4]
[366684719,1750410665676,-785.48,0.0002591,4]
[366684720,1750410665686,-490.0,0.0002591,4]
[366684721,1750410665695,-505.91,0.0002591,4]
[366684722,1750410665705,-576.4,0.0002591,4]
[366684723,1750410665715,-490.0,0.0002591,4]
[366684724,1750410665725,-593.77,0.0002591,4]
[366684725,1750410665734,-1039.45,0.0002591,4]
[366684726,1750410665744,-772.87,0.0002591,4]
[366684727,1750410665754,-2153.23,0.0002591,4]
[366684728,1750410665764,-490.0,0.0002591,4]
[366684729,1750410665775,-490.0,0.0002591,4]
[366684730,1750410665785,-490.0,0.0002591,4]
[366684731,1750410665794,-625.45,0.0002591,4]
[366684732,1750410665805,-1911.62,0.0002591,4]
[366684733,1750410665815,-1807.32,0.0002591,4]
[366684734,1750410665824,-490.0,0.0002591,4]
[366684735,1750410665834,-490.0,0.0002591,4]
[366684736,1750410665844,-490.0,0.0002591,4]
[366684737,1750410665854,-1431.52,0.0002591,4]
[366684738,1750410665864,-490.0,0.0002591,4]
[366684739,1750410665874,-1076.79,0.0002591,4]
[366684740,1750410665884,-490.0,0.0002591,4]
[366684741,1750410665894,-490.0,0.0002591,4]
[366684742,1750410665904,-623.44,0.0002591,4]
[366684743,1750410665913,-1395.32,0.0002591,4]
[366684744,1750410665923,-490.0,0.0002591,4]
[366684745,1750410665933,-1251.69,0.0002591,4]
[366684746,1750410665943,-604.93290917,0.0002591,4]
[366684747,1750410665953,-490.0,0.0002591,4]
[366684748,1750410665962,-707.7,0.0002591,4]
[366684749,1750410665973,-490.0,0.0002591,4]
[366684750,1750410665983,-878.39,0.0002591,4]
[366684751,1750410665992,-490.0,0.0002591,4]
[366684752,1750410666002,-490.0,0.0002591,4]
[366684753,1750410666011,-490.0,0.0002591,4]
[366684754,1750410666021,-7244.66,0.0002591,4]
[366684755,1750410666031,-490.0,0.0002591,4]
[366684756,1750410666041,-1072.4,0.0002591,4]
[366684757,1750410666052,-490.0,0.0002591,4]
[366684758,1750410666062,-490.0,0.0002591,4]
[366684759,1750410666072,-490.0,0.0002591,4]
[366684760,1750410666082,-804.86,0.0002591,4]
[366684761,1750410666091,-2393.6,0.0002591,4]
[366684762,1750410666102,-490.0,0.0002591,4]
[366684763,1750410666112,-490.0,0.0002591,4]
[366684764,1750410666122,-16510.73,0.0002591,4]
[366684765,1750410666132,-490.0,0.0002591,2]
[366684766,1750410666142,-490.0,0.0002591,4]
[366684767,1750410666153,-490.0,0.0002591,4]
[366684768,1750410666163,-490.0,0.00025911,4]
[366684769,1750410666173,-490.0,0.00025911,4]
[366684770,1750410666183,-802.93,0.00025911,4]
[366684771,1750410666193,-490.0,0.00025911,4]
[366684772,1750410666203,-388.39196327,0.00025911,4]
[366684773,1750410666213,-490.0,0.00025911,4]
[366684774,1750410666222,-490.0,0.00025911,4]
[366684775,1750410666232,-899.14,0.00025911,4]
[366684776,1750410666242,-490.0,0.00025911,4]
[366684777,1750410666252,-748.36,0.00025911,4]
[366684778,1750410666262,-490.0,0.00025911,4]
[366684779,1750410666271,-490.0,0.00025911,4]
[366684780,1750410666281,-490.0,0.00025911,4]
[366684781,1750410666291,-490.0,0.00025911,4]
[366684782,1750410666301,-490.0,0.00025911,4]
[366684783,1750410666311,-398.9912319,0.00025911,4]
[366684784,1750410666320,-490.0,0.00025911,4]
[366684785,1750410666330,-490.0,0.00025911,4]
[366684786,1750410666339,-490.0,0.00025911,4]
[366684787,1750410666349,-638.56,0.00025911,4]
[366684788,1750410666359,-495.14,0.00025911,4]
[366684789,1750410666369,-1040.37,0.00025911,4]
[366684790,1750410666381,-490.0,0.00025911,4]
[366684791,1750410666391,-822.59,0.00025911,4]
[366684792,1750410666400,-490.0,0.00025911,4]
[366684793,1750410666410,-577.89,0.00025911,4]
[366684794,1750410666419,-490.0,0.00025911,4]
[366684795,1750410666428,-490.0,0.00025911,4]
[366684796,1750410666439,-416.32068152,0.00025911,4]
[366684797,1750410666449,-490.0,0.00025911,4]
[366684798,1750410666459,-490.0,0.00025911,4]
[366684799,1750410666469,-490.0,0.00025911,4]
[366684800,1750410666479,-490.0,0.00025911,4]
[366684801,1750410666489,-778.42,0.00025911,4]
[366684802,1750410666499,-563.4,0.00025911,4]
[366684803,1750410666509,-490.0,0.00025911,4]
[366684804,1750410666518,-490.0,0.00025911,4]
[366684805,1750410666529,-418.60016872,0.00025911,4]
[366684806,1750410666538,-490.0,0.00025911,4]
[366684807,1750410666548,-730.66,0.00025911,4]
[366684808,1750410666558,-583.55,0.00025911,4]
[366684809,1750410666567,-514.51,0.00025911,4]
[366684810,1750410666577,-490.0,0.00025911,4]
[366684811,1750410666587,-490.0,0.00025911,4]
[366684812,1750410666597,-490.0,0.00025911,4]
[366684813,1750410666606,-544.71,0.00025911,4]
[366684814,1750410666615,-490.0,0.00025911,4]
[366684815,1750410666625,-490.0,0.00025911,4]
[366684816,1750410666635,-490.0,0.00025911,4]
[366684817,1750410666645,-490.0,0.00025911,4]
[366684818,1750410666655,-490.0,0.00025911,4]
[366684819,1750410666665,-490.0,0.00025911,4]
[366684820,1750410666674,-490.0,0.00025911,4]
[366684821,1750410666683,-490.0,0.00025911,4]
[366684822,1750410666693,-490.0,0.00025911,4]
[366684823,1750410666703,-490.0,0.00025911,4]
[366684824,1750410666713,-1199.4,0.00025911,4]
[366684825,1750410666723,-560.17001782,0.00025911,4]
[366684826,1750410666733,-490.0,0.00025911,4]
[366684827,1750410666742,-490.0,0.00025911,4]
[366684828,1750410666752,-490.0,0.00025911,4]
[366684829,1750410666763,-490.0,0.00025911,4]
[366684830,1750410666773,-490.0,0.00025911,4]
[366684831,1750410666783,-490.0,0.00025911,4]
[366684832,1750410666793,-490.0,0.00025911,4]
[366684833,1750410666803,-490.0,0.00025911,4]
[366684834,1750410666812,-490.0,0.00025911,4]
[366684835,1750410666822,-490.0,0.00025911,4]
[366684836,1750410666832,-490.0,0.00025911,4]
[366684837,1750410666842,-191.83318194,0.00025911,4]
[366684838,1750410666853,-691.21,0.00025911,4]
[366684839,1750410666863,-490.0,0.00025911,4]
[366684840,1750410666874,-490.0,0.00025911,4]
[366684841,1750410666884,-490.0,0.00025911,4]
[366684842,1750410666894,-490.0,0.00025911,4]
[366684843,1750410666905,-701.88,0.00025911,4]
[366684844,1750410666915,-561.77,0.00025911,4]
[366684845,1750410666925,-490.0,0.00025911,4]
[366684846,1750410666936,-490.0,0.00025911,4]
[366684847,1750410666946,-490.0,0.00025911,4]
[366684848,1750410666956,-490.0,0.00025911,4]
[366684849,1750410666966,-490.0,0.00025911,4]
[366684850,1750410666976,-490.0,0.00025911,4]
[366684851,1750410666986,-827.26,0.00025911,4]
[366684852,1750410666996,-490.0,0.00025911,4]
[366684853,1750410667006,-490.0,0.00025911,4]
[366684854,1750410667016,-336.98759443,0.00025911,4]
[366684855,1750410667026,-490.0,0.00025911,4]
[366684856,1750410667035,-490.0,0.00025911,4]
[366684857,1750410667045,-1819.87,0.00025911,4]
[366684858,1750410667054,-490.0,0.00025911,4]
[366684859,1750410667065,-490.0,0.00025911,4]
[366684860,1750410667074,-490.0,0.00025911,4]
[366684861,1750410667084,-490.0,0.00025911,4]
[366684862,1750410667095,-490.0,0.00025911,4]
[366684863,1750410667104,-490.0,0.00025911,4]
[366684864,1750410667114,-659.39,0.00025911,4]
[366684865,1750410667124,-490.0,0.00025911,4]
[366684866,1750410667134,-490.0,0.00025911,4]
[366684867,1750410667143,-613.38171745,0.00025911,4]
[366684868,1750410667153,-490.0,0.00025911,4]
[366684869,1750410667162,-490.0,0.00025911,4]
[366684870,1750410667172,-490.0,0.00025911,4]
[366684871,1750410667181,-490.0,0.00025911,4]
[366684872,1750410667191,-490.0,0.00025911,4]
[366684873,1750410667200,-490.0,0.00025911,4]
[366684874,1750410667210,-588.08,0.00025911,4]
[366684875,1750410667220,-1127.02,0.00025911,4]
[366684876,1750410667230,-1699.09,0.00025911,4]
[366684877,1750410667239,-283.18508423,0.00025911,4]
[366684878,1750410667249,-490.14,0.00025911,4]
[366684879,1750410667259,-490.0,0.00025911,4]
[366684880,1750410667269,-490.0,0.00025911,4]
[366684881,1750410667278,-490.0,0.00025911,4]
[366684882,1750410667288,-490.0,0.00025911,4]
[366684883,1750410667298,-490.0,0.00025911,4]
[366684884,1750410667307,-2129.78,0.00025911,4]
[366684885,1750410667317,-490.0,0.00025911,4]
[366684886,1750410667327,-1853.0,0.00025911,4]
[366684887,1750410667338,-490.0,0.00025911,4]
[366684888,1750410667347,-1509.52,0.00025911,4]
[366684889,1750410667357,-184.78598933,0.00025911,4]
[366684890,1750410667367,-490.0,0.00025911,4]
[366684891,1750410667378,-490.0,0.00025911,4]
[366684892,1750410667389,-490.0,0.00025911,4]
[366684893,1750410667399,-490.0,0.00025911,4]
[366684894,1750410667408,-490.0,0.00025911,4]
[366684895,1750410667417,-490.0,0.00025911,4]
[366684896,1750410667429,-490.0,0.00025911,4]
[366684897,1750410667439,-562.41,0.00025911,4]
[366684898,1750410667450,-490.0,0.00025911,4]
[366684899,1750410667461,-490.0,0.00025911,4]
[366684900,1750410667471,-490.0,0.00025911,4]
[366684901,1750410667480,-490.0,0.00025911,4]
[366684902,1750410667490,-490.0,0.00025911,4]
[366684903,1750410667500,-490.0,0.00025911,4]
[366684904,1750410667510,-741.68,0.00025911,4]
[366684905,1750410667520,-522.64,0.00025911,4]
[366684906,1750410667529,-490.0,0.00025911,4]
[366684907,1750410667539,-490.0,0.00025911,4]
[366684908,1750410667549,-490.0,0.00025911,4]
[366684909,1750410667559,-1724.13,0.00025911,4]
[366684910,1750410667569,-490.0,0.00025911,4]
[366684911,1750410667579,-679.55,0.00025911,4]
[366684912,1750410667589,-490.0,0.00025911,4]
[366684913,1750410667598,-490.0,0.00025911,4]
[366684914,1750410667608,-2443.09,0.00025911,4]
[366684915,1750410667618,-1286.71,0.00025911,4]
[366684916,1750410667627,-512.04,0.00025911,4]
[366684917,1750410667637,-490.0,0.00025911,4]
[366684918,1750410667647,-490.0,0.00025911,4]
[366684919,1750410667657,-1056.33,0.00025911,4]
[366684920,1750410667668,-490.0,0.00025911,4]
[366684921,1750410667678,-490.0,0.00025911,4]
[366684922,1750410667687,-510.97,0.00025911,4]
[366684923,1750410667697,-917.25,0.00025911,4]
[366684924,1750410667707,-490.0,0.00025911,4]
[366684925,1750410667717,-490.0,0.00025911,4]
[366684926,1750410667726,-1037.18,0.00025911,4]
[366684927,1750410667736,-490.0,0.00025911,4]
[366684928,1750410667746,-490.0,0.00025911,4]
[366684929,1750410667756,-490.0,0.00025911,4]
[366684930,1750410667766,-490.0,0.00025911,4]
[366684931,1750410667776,-490.0,0.00025911,4]
[366684932,1750410667786,-1612.02,0.00025911,4]
[366684933,1750410667796,-1161.0,0.00025911,4]
[366684934,1750410667806,-490.0,0.00025911,4]
[366684935,1750410667816,-502.14,0.00025911,4]
[366684936,1750410667826,-804.65,0.00025911,4]
[366684937,1750410667836,-490.0,0.00025911,4]
[366684938,1750410667845,-490.0,0.00025911,4]
[366684939,1750410667855,-527.87,0.00025911,4]
[366684940,1750410667865,-490.0,0.00025911,4]
[366684941,1750410667875,-490.0,0.00025911,4]
[366684942,1750410667885,-490.0,0.00025911,4]
[366684943,1750410667895,-701.35,0.00025911,4]
[366684944,1750410667906,-490.0,0.00025911,4]
[366684945,1750410667917,-1715.63,0.00025911,4]
[366684946,1750410667928,-490.0,0.00025911,4]
[366684947,1750410667937,-1083.1,0.00025911,4]
[366684948,1750410667947,-490.0,0.00025911,4]
[366684949,1750410667957,-490.0,0.00025911,4]
[366684950,1750410667967,-1549.1,0.00025911,4]
[366684951,1750410667978,-676.73,0.00025911,4]
[366684952,1750410667989,-490.0,0.00025911,4]
[366684953,1750410667998,-490.0,0.00025911,4]
[366684954,1750410668010,-490.0,0.00025911,4]
[366684955,1750410668020,-490.0,0.00025911,4]
[366684956,1750410668030,-721.5,0.00025911,4]
[366684957,1750410668039,-1569.24,0.00025911,4]
[366684958,1750410668049,-550.79,0.00025911,4]
[366684959,1750410668058,-524.67,0.00025911,4]
[366684960,1750410668069,-490.0,0.00025911,4]
[366684961,1750410668078,-490.0,0.00025911,4]
[366684962,1750410668088,-491.22,0.00025911,4]
[366684963,1750410668098,-490.0,0.00025911,4]
[366684964,1750410668107,-508.78,0.00025911,4]
[366684965,1750410668118,-490.0,0.00025911,4]
[366684966,1750410668129,-490.0,0.00025911,4]
[366684967,1750410668139,-490.0,0.00025911,4]
[366684968,1750410668150,-402.6092425,0.00025911,4]
[366684969,1750410668160,-1135.63,0.00025911,4]
[366684970,1750410668170,-828.89,0.00025911,4]
[366684971,1750410668180,-505.73,0.00025911,4]
[366684972,1750410668189,-490.0,0.00025911,4]
[366684973,1750410668198,-1003.92,0.00025911,4]
[366684974,1750410668208,-835.49,0.00025911,4]
[366684975,1750410668218,-490.0,0.00025911,4]
[366684976,1750410668229,-519.36,0.00025911,4]
[366684977,1750410668245,-490.0,0.00025911,4]
[366684978,1750410668255,-490.0,0.00025911,4]
[366684979,1750410668265,-490.0,0.00025911,4]
[366684980,1750410668274,-497.42,0.00025911,4]
[366684981,1750410668284,-490.0,0.00025911,4]
[366684982,1750410668294,-490.0,0.00025911,4]
[366684983,1750410668304,-490.0,0.00025911,4]
[366684984,1750410668314,-490.0,0.00025911,4]
[366684985,1750410668324,-490.0,0.00025911,4]
[366684986,1750410668333,-490.0,0.00025911,4]
[366684987,1750410668344,-950.11,0.00025911,4]
[366684988,1750410668354,-490.0,0.00025911,4]
[366684989,1750410668363,-2069.2,0.00025911,4]
[366684990,1750410668373,-490.0,0.00025911,4]
[366684991,1750410668387,-530.32,0.00025911,4]
[366684992,1750410668397,-657.84,0.00025911,4]
[366684993,1750410668407,-816.29,0.00025911,4]
[366684994,1750410668417,-720.64,0.00025911,4]
[366684995,1750410668427,-490.0,0.00025911,4]
[366684996,1750410668437,-490.0,0.00025911,4]
[366684997,1750410668447,-490.0,0.00025911,4]
[366684998,1750410668460,-490.0,0.00025911,4]
[366684999,1750410668471,-490.0,0.00025911,4]
[366685000,1750410668480,-490.0,0.00025911,4]
[366685001,1750410668490,-1099.78,0.00025911,4]
[366685002,1750410668499,-566.15,0.00025911,4]
[366685003,1750410668509,-490.0,0.00025911,4]
[366685004,1750410668519,-490.0,0.00025911,4]
[366685005,1750410668529,-490.0,0.00025911,4]
[366685006,1750410668539,-509.81,0.00025911,4]
[366685007,1750410668550,-1109.26,0.00025911,4]
[366685008,1750410668560,-490.0,0.00025911,4]
[366685009,1750410668569,-1460.93,0.00025911,4]
[366685010,1750410668579,-490.0,0.00025911,4]
[366685011,1750410668588,-1443.06,0.00025911,4]
[366685012,1750410668598,-490.0,0.00025911,4]
[366685013,1750410668608,-1473.09,0.00025911,4]
[366685014,1750410668617,-490.0,0.00025911,4]
[366685015,1750410668627,-1892.36,0.00025911,4]
[366685016,1750410668636,-818.59,0.00025911,4]
[366685017,1750410668646,-768.16,0.00025911,4]
[366685018,1750410668656,-490.0,0.00025911,4]
[366685019,1750410668666,-490.0,0.00025911,4]
[366685020,1750410668676,-2527.48,0.00025911,4]
[366685021,1750410668686,-490.0,0.00025911,4]
[366685022,1750410668696,-659.73,0.00025911,4]
[366685023,1750410668706,-490.0,0.00025911,4]
[366685024,1750410668716,-2051.96,0.00025911,4]
[366685025,1750410668726,-490.0,0.00025911,4]
[366685026,1750410668735,-688.51,0.00025911,4]
[366685027,1750410668745,-490.0,0.00025911,4]
[366685028,1750410668755,-1046.93,0.00025911,4]
[366685029,1750410668764,-490.0,0.00025911,4]
[366685030,1750410668774,-490.0,0.00025911,4]
[366685031,1750410668784,-490.0,0.00025911,4]
[366685032,1750410668793,-490.0,0.00025911,4]
[366685033,1750410668803,-624.12,0.00025911,4]
[366685034,1750410668813,-490.0,0.00025911,4]
[366685035,1750410668823,-683.14,0.00025911,4]
[366685036,1750410668832,-1235.36,0.00025911,4]
[366685037,1750410668842,-906.06,0.00025911,4]
[366685038,1750410668852,-490.0,0.00025911,4]
[366685039,1750410668862,-537.59,0.00025911,4]
[366685040,1750410668872,-2902.06,0.00025911,4]
[366685041,1750410669004,-651.39,0.00025911,4]
[366685042,1750410669027,-490.0,0.00025911,4]
[366685043,1750410669037,-490.0,0.00025911,4]
[366685044,1750410669047,-1298.5,0.00025911,4]
[366685045,1750410669056,-300.0,0.00025911,4]
[366685046,1750410669066,-490.0,0.00025911,4]
[366685047,1750410669076,-490.0,0.00025911,4]
[366685048,1750410669085,-490.0,0.00025911,4]
[366685049,1750410669095,-505.06,0.00025911,4]
[366685050,1750410669105,-805.97,0.00025911,4]
[366685051,1750410669115,-490.0,0.00025911,4]
[366685052,1750410669125,-1434.17,0.00025911,4]
[366685053,1750410669134,-490.0,0.00025911,4]
[366685054,1750410669144,-790.73,0.00025911,4]
[366685055,1750410669154,-1006.64,0.00025911,4]
[366685056,1750410669163,-1327.33,0.00025911,4]
[366685057,1750410669173,-490.0,0.00025911,4]
[366685058,1750410669183,-490.0,0.00025911,4]
[366685059,1750410669193,-1827.15,0.00025911,4]
[366685060,1750410669202,-741.21,0.00025911,4]
[366685061,1750410669211,-435.6854727,0.00025911,4]
[366685062,1750410669221,-947.64,0.00025911,4]
[366685063,1750410669231,-490.0,0.00025911,4]
[366685064,1750410669240,-511.81,0.00025911,4]
[366685065,1750410669250,-540.13,0.00025911,4]
[366685066,1750410669259,-490.0,0.00025911,4]
[366685067,1750410669269,-538.53,0.00025911,4]
[366685068,1750410669279,-960.74,0.00025911,4]
[366685069,1750410669288,-490.0,0.00025911,4]
[366685070,1750410669299,-550.43,0.00025911,4]
[366685071,1750410669308,-490.0,0.00025911,4]
[366685072,1750410669318,-490.0,0.00025911,4]
[366685073,1750410669327,-490.0,0.00025911,4]
[366685074,1750410669337,-515.66,0.00025911,4]
[366685075,1750410669347,-490.0,0.00025911,4]
[366685076,1750410669357,-490.0,0.00025911,4]
[366685077,1750410669367,-545.71,0.00025911,4]
[366685078,1750410669379,-756.93,0.00025911,4]
[366685079,1750410669389,-490.0,0.00025911,4]
[366685080,1750410669399,-490.0,0.00025911,4]
[366685081,1750410669409,-574.79,0.00025911,4]
[366685082,1750410669418,-585.48,0.00025911,4]
[366685083,1750410669428,-869.83,0.00025911,4]
[366685084,1750410669438,-490.0,0.00025911,4]
[366685085,1750410669449,-2356.0,0.00025911,4]
[366685086,1750410669459,-581.05,0.00025911,4]
[366685087,1750410669469,-490.12,0.00025911,4]
[366685088,1750410669479,-571.01,0.00025911,4]
[366685089,1750410669489,-490.0,0.00025911,4]
[366685090,1750410669499,-490.0,0.00025911,4]
[366685091,1750410669509,-490.0,0.00025911,4]
[366685092,1750410669518,-2499.07,0.00025911,4]
[366685093,1750410669528,-490.0,0.00025911,4]
[366685094,1750410669538,-406.09039849,0.00025911,4]
[366685095,1750410669547,-490.0,0.00025911,4]
[366685096,1750410669557,-540.68,0.00025911,4]
[366685097,1750410669567,-490.0,0.00025911,4]
[366685098,1750410669577,-490.0,0.00025911,4]
[366685099,1750410669587,-597.33120681,0.00025911,4]
[366685100,1750410669597,-490.0,0.00025911,4]
[366685101,1750410669606,-490.0,0.00025911,4]
[366685102,1750410669616,-490.0,0.00025911,4]
[366685103,1750410669626,-1358.23,0.00025911,4]
[366685104,1750410669635,-574.41,0.00025911,4]
[366685105,1750410669645,-490.2,0.00025911,4]
[366685106,1750410669655,-490.0,0.00025911,4]
[366685107,1750410669665,-490.0,0.00025911,4]
[366685108,1750410669675,-1866.2,0.00025911,4]
[366685109,1750410669685,-490.0,0.00025911,4]
[366685110,1750410669694,-301.75,0.00025911,4]
[366685111,1750410669704,-490.0,0.00025911,4]
[366685112,1750410669714,-490.0,0.00025911,4]
[366685113,1750410669724,-490.0,0.00025911,4]
[366685114,1750410669733,-1612.3,0.00025911,4]
[366685115,1750410669743,-1036.11,0.00025911,4]
[366685116,1750410669753,-150.0,0.00025911,10]
[366685117,1750410669763,-490.0,0.00025911,4]
[366685118,1750410669772,-1056.97,0.00025911,4]
[366685119,1750410669783,-490.0,0.00025911,4]
[366685120,1750410669793,-490.0,0.00025911,4]
[366685121,1750410669803,-1426.23,0.00025911,4]
[366685122,1750410669814,-1024.72,0.00025911,4]
[366685123,1750410669824,-596.26,0.00025911,4]
[366685124,1750410669834,-490.0,0.00025911,4]
[366685125,1750410669844,-541.64,0.00025911,4]
[366685126,1750410669854,-580.02,0.00025911,4]
[366685127,1750410669864,-677.01,0.00025911,4]
[366685128,1750410669874,-490.0,0.00025911,4]
[366685129,1750410669885,-490.0,0.00025911,4]
[366685130,1750410669895,-1557.83,0.00025911,4]
[366685131,1750410669906,-490.0,0.00025911,4]
[366685132,1750410669916,-1060.27,0.00025911,4]
[366685133,1750410669926,-490.0,0.00025911,4]
[366685134,1750410669936,-490.0,0.00025911,4]
[366685135,1750410669946,-490.0,0.00025911,4]
[366685136,1750410669956,-1272.75,0.00025911,4]
[366685137,1750410669966,-490.0,0.00025911,4]
[366685138,1750410669976,-490.0,0.00025911,4]
[366685139,1750410669986,-490.0,0.00025911,4]
[366685140,1750410669997,-490.0,0.00025911,4]
[366685141,1750410670007,-490.0,0.00025911,4]
[366685142,1750410670019,-798.24,0.00025911,4]
[366685143,1750410670029,-673.23,0.00025911,4]
[366685144,1750410670039,-490.0,0.00025911,4]
[366685145,1750410670049,-490.0,0.00025911,4]
[366685146,1750410670060,-550.09,0.00025911,4]
[366685147,1750410670069,-492.09,0.00025911,4]
[366685148,1750410670079,-490.0,0.00025911,4]
[366685149,1750410670089,-490.0,0.00025911,4]
[366685150,1750410670100,-490.0,0.00025911,4]
[366685151,1750410670110,-862.23,0.00025911,4]
[366685152,1750410670120,-490.0,0.00025911,4]
[366685153,1750410670130,-490.0,0.00025911,4]
[366685154,1750410670140,-490.0,0.00025911,4]
[366685155,1750410670151,-913.0,0.00025911,4]
[366685156,1750410670161,-490.0,0.00025911,4]
[366685157,1750410670172,-637.71,0.00025911,4]
[366685158,1750410670181,-490.0,0.00025911,4]
[366685159,1750410670191,-490.0,0.00025911,4]
[366685160,1750410670200,-490.0,0.00025911,4]
[366685161,1750410670210,-537.62,0.00025911,4]
[366685162,1750410670219,-490.0,0.00025911,4]
[366685163,1750410670231,-714.94,0.00025911,4]
[366685164,1750410670240,-490.0,0.00025911,4]
[366685165,1750410670250,-490.0,0.00025911,4]
[366685166,1750410670260,-490.0,0.00025911,4]
[366685167,1750410670270,-490.0,0.00025911,4]
[366685168,1750410670280,-701.86,0.00025911,4]
[366685169,1750410670290,-490.0,0.00025911,4]
[366685170,1750410670300,-1077.89,0.00025911,4]
[366685171,1750410670310,-490.0,0.00025911,4]
[366685172,1750410670319,-490.0,0.00025911,4]
[366685173,1750410670329,-657.95,0.00025911,4]
[366685174,1750410670339,-490.0,0.00025911,4]
[366685175,1750410670349,-523.65,0.00025911,4]
[366685176,1750410670360,-610.20434138,0.00025912,2]
[366685177,1750410670370,-490.0,0.00025912,4]
[366685178,1750410670383,-490.0,0.00025912,4]
[366685179,1750410670393,-490.0,0.00025912,4]
[366685180,1750410670402,-490.0,0.00025912,4]
[366685181,1750410670413,-504.59982354,0.00025912,4]
[366685182,1750410670423,-490.0,0.00025912,4]